bitfinex/quotes_BTCUSD_20241206
["timestamp","ask_amount","ask_price","bid_price","bid_amount"]
[1733518111421,0.001,101520.0,101510.0,0.00098489]
[1733518112057,0.10002951,101530.0,101510.0,0.00098489]
[1733518112511,0.0017406,101540.0,101510.0,0.15098489]
[1733518112730,0.09608234,101540.0,101520.0,0.0376]
[1733518112949,0.09608234,101540.0,101530.0,0.00098482]
[1733518113690,0.09608234,101540.0,101520.0,0.03858482]
[1733518113899,0.001,101530.0,101520.0,0.03858482]
[1733518114428,0.09608234,101540.0,101520.0,0.03858482]
[1733518114598,0.09708234,101540.0,101520.0,0.04516515]
[1733518115023,0.09608234,101540.0,101520.0,0.04516515]
[1733518115439,0.09608234,101540.0,101520.0,0.00658033]
[1733518116060,0.09808234,101540.0,101520.0,0.00658033]
[1733518116440,0.09608234,101540.0,101520.0,0.00658033]
[1733518116620,0.0832,101530.0,101510.0,0.05440626]
[1733518116959,0.10002951,101520.0,101510.0,0.05440626]
[1733518117935,0.10002951,101520.0,101510.0,0.05640626]
[1733518118443,0.10002951,101520.0,101510.0,0.05440626]
[1733518118641,0.10002951,101520.0,101510.0,0.05826036]
[1733518119081,0.10002951,101520.0,101510.0,0.05926036]
[1733518119497,0.10002951,101520.0,101510.0,0.05727536]
[1733518119721,0.10002951,101520.0,101510.0,0.05827536]
[1733518120121,0.10002951,101520.0,101510.0,0.05926036]
[1733518120330,0.1272,101540.0,101490.0,0.25]
[1733518120531,0.10002951,101530.0,101500.0,0.00098489]
[1733518120746,0.10002951,101530.0,101500.0,0.00684936]
[1733518120965,0.10002951,101530.0,101500.0,0.00098489]
[1733518121274,0.10002951,101530.0,101510.0,0.00582003]
[1733518121668,0.10102951,101530.0,101510.0,0.00582003]
[1733518123121,0.10002951,101530.0,101510.0,0.00682003]
[1733518123348,0.10002951,101530.0,101510.0,0.00882003]
[1733518123749,0.10101451,101530.0,101510.0,0.00882003]
[1733518124006,0.08783454,101530.0,101510.0,0.00882003]
[1733518124199,0.0832,101520.0,101510.0,0.00882003]
[1733518124423,0.25271451,101520.0,101510.0,0.00882003]
[1733518124644,0.25172951,101520.0,101510.0,0.00882003]
[1733518124869,0.25172951,101520.0,101510.0,0.03524925]
[1733518125299,0.25172951,101520.0,101510.0,0.03424925]
[1733518125506,0.25272951,101520.0,101510.0,0.03424925]
[1733518125898,0.25272951,101520.0,101510.0,0.03224925]
[1733518126377,0.25272951,101520.0,101510.0,0.03424925]
[1733518126589,0.25272951,101520.0,101510.0,0.03224925]
[1733518127331,0.23172951,101520.0,101510.0,0.03224925]
[1733518130312,0.23172951,101520.0,101510.0,0.03311835]
[1733518138336,0.25472951,101520.0,101510.0,0.03311835]
[1733518138791,0.25472951,101520.0,101510.0,0.03147151]
[1733518139204,0.30472951,101520.0,101510.0,0.02729832]
[1733518141110,0.30372951,101520.0,101510.0,0.02729832]
[1733518141495,0.30872951,101520.0,101510.0,0.02729832]
[1733518141734,0.30672951,101520.0,101510.0,0.02729832]
[1733518141948,0.31572951,101520.0,101510.0,0.02729832]
[1733518142367,0.30247628,101520.0,101510.0,0.0008691]
[1733518142545,0.1203,101500.0,101470.0,0.0158697]
[1733518142782,0.17631451,101490.0,101470.0,0.0158697]
[1733518142912,0.24332951,101480.0,101470.0,0.04313037]
[1733518143959,0.24332951,101480.0,101470.0,0.0158697]
[1733518144168,0.24332951,101480.0,101470.0,0.0178697]
[1733518144394,0.29332951,101480.0,101470.0,0.0178697]
[1733518145087,0.24832951,101480.0,101470.0,0.0178697]
[1733518145352,0.24832951,101480.0,101460.0,0.0008695]
[1733518145353,0.073,101470.0,101460.0,0.0008695]
[1733518145566,0.29961451,101470.0,101460.0,0.0008695]
[1733518145823,0.29862951,101470.0,101460.0,0.0008695]
[1733518146027,0.24862951,101470.0,101460.0,0.0008695]
[1733518147323,0.25362951,101470.0,101460.0,0.0008695]
[1733518147998,0.26262951,101470.0,101460.0,0.0008695]
[1733518149009,0.31262951,101470.0,101460.0,0.0008695]
[1733518149830,0.31262951,101470.0,101460.0,0.00462435]
[1733518150043,0.31262951,101470.0,101460.0,0.0008695]
[1733518150700,0.31262951,101470.0,101460.0,0.00462435]
[1733518150900,0.31262951,101470.0,101460.0,0.0008695]
[1733518152423,0.35760164,101470.0,101460.0,0.0008695]
[1733518154145,0.46835291,101470.0,101460.0,0.0008695]
[1733518154347,0.1963,101450.0,101440.0,0.0154254]
[1733518154599,0.29632951,101450.0,101440.0,0.1654254]
[1733518154804,0.34632951,101450.0,101440.0,0.0154254]
[1733518155022,0.34632951,101450.0,101440.0,0.01918788]
[1733518155023,0.40708078,101450.0,101440.0,0.01918788]
[1733518155233,0.40708078,101450.0,101440.0,0.0154254]
[1733518155435,0.41608078,101450.0,101440.0,0.0154254]
[1733518155846,0.40708078,101450.0,101440.0,0.0154254]
[1733518156035,0.30532951,101450.0,101440.0,0.0154254]
[1733518156253,0.35532951,101450.0,101440.0,0.0154254]
[1733518156388,0.34632951,101450.0,101440.0,0.0154254]
[1733518156618,0.35532951,101450.0,101440.0,0.0154254]
[1733518157053,0.36232951,101450.0,101440.0,0.01922536]
[1733518157454,0.35532951,101450.0,101440.0,0.0154254]
[1733518157930,0.36432951,101450.0,101440.0,0.0054254]
[1733518158082,0.24132951,101450.0,101440.0,0.0054254]
[1733518158286,0.19352951,101450.0,101440.0,0.0054254]
[1733518158487,0.19352951,101450.0,101440.0,0.00920523]
[1733518158896,0.17552951,101450.0,101440.0,0.00920523]
[1733518159330,0.18452951,101450.0,101440.0,0.00920523]
[1733518159542,0.19852951,101450.0,101440.0,0.00920523]
[1733518159904,0.20752951,101450.0,101440.0,0.00920523]
[1733518160304,0.13702951,101450.0,101440.0,0.00920523]
[1733518160586,0.13702951,101450.0,101440.0,0.0054254]
[1733518160758,0.10902951,101450.0,101440.0,0.00919554]
[1733518161145,0.11402951,101450.0,101440.0,0.00919554]
[1733518163140,0.11402951,101450.0,101440.0,0.04250863]
[1733518165169,0.13702951,101450.0,101440.0,0.04250863]
[1733518165589,0.22723096,101450.0,101440.0,0.15919554]
[1733518165802,0.21342951,101450.0,101440.0,0.15919554]
[1733518166223,0.31232951,101450.0,101440.0,0.00919554]
[1733518166663,0.31232951,101450.0,101440.0,0.0054254]
[1733518167124,0.1975,101440.0,101430.0,0.0039201]
[1733518167325,0.29752951,101440.0,101430.0,0.0039201]
[1733518168229,0.29752951,101440.0,101430.0,0.00699609]
[1733518168454,0.23352951,101440.0,101430.0,0.00699609]
[1733518168667,0.23352951,101440.0,101430.0,0.0039201]
[1733518168888,0.23352951,101440.0,101430.0,0.00771206]
[1733518169331,0.22452951,101440.0,101430.0,0.00771206]
[1733518169725,0.25652951,101440.0,101430.0,0.00771206]
[1733518169966,0.26552951,101440.0,101430.0,0.00771206]
[1733518170354,0.25652951,101440.0,101430.0,0.00771206]
[1733518170798,0.26152951,101440.0,101430.0,0.0039201]
[1733518171015,0.25252951,101440.0,101430.0,0.00770865]
[1733518171247,0.10002951,101440.0,101430.0,0.15770865]
[1733518171457,0.014,101440.0,101430.0,0.17356653]
[1733518171724,0.014,101440.0,101430.0,0.17007167]
[1733518172398,0.014,101440.0,101430.0,0.02007167]
[1733518172621,0.005,101440.0,101430.0,0.02007167]
[1733518173062,0.0017398,101450.0,101430.0,0.00521379]
[1733518173269,0.10002951,101440.0,101430.0,0.00621379]
[1733518173709,0.10002951,101440.0,101430.0,0.00521379]
[1733518174129,0.10002951,101440.0,101430.0,0.00621379]
[1733518174544,0.10002951,101440.0,101430.0,0.00521379]
[1733518174751,0.10002951,101440.0,101430.0,0.00621379]
[1733518174898,0.10002951,101440.0,101430.0,0.00521379]
[1733518175303,0.10002951,101440.0,101430.0,0.00821379]
[1733518175526,0.10002951,101440.0,101430.0,0.00521379]
[1733518175932,0.10002951,101440.0,101430.0,0.00821379]
[1733518176143,0.10002951,101440.0,101430.0,0.00721379]
[1733518176453,0.10002951,101440.0,101430.0,0.00821379]
[1733518177085,0.10002951,101440.0,101430.0,0.04182312]
[1733518177309,0.10002951,101440.0,101430.0,0.04795244]
[1733518179008,0.10002951,101440.0,101430.0,0.00914491]
[1733518179434,0.10002951,101440.0,101410.0,0.00098587]
[1733518179658,0.0027248,101450.0,101430.0,0.00914491]
[1733518179872,0.10002951,101440.0,101420.0,0.00918202]
[1733518180076,0.10002951,101440.0,101410.0,0.00098587]
[1733518180278,0.10002951,101440.0,101410.0,0.03394828]
[1733518180519,0.10002951,101440.0,101410.0,0.00614773]
[1733518180717,0.10102951,101440.0,101410.0,0.00714773]
[1733518181153,0.10102951,101440.0,101430.0,0.00087]
[1733518181356,0.10276951,101440.0,101430.0,0.00087]
[1733518181565,0.10376951,101440.0,101430.0,0.00087]
[1733518182000,0.10276951,101440.0,101430.0,0.00087]
[1733518182642,0.10176951,101440.0,101430.0,0.00087]
[1733518186603,0.00174,101440.0,101430.0,0.00087]
[1733518187238,0.00174,101440.0,101410.0,0.25]
[1733518187446,0.00174,101440.0,101420.0,0.15]
[1733518187726,0.00174,101440.0,101420.0,0.15049334]
[1733518187933,0.10176951,101440.0,101420.0,0.15049334]
[1733518188149,0.22736951,101440.0,101410.0,0.11769785]
[1733518188375,0.17986951,101440.0,101410.0,0.08708463]
[1733518188561,0.10276951,101440.0,101410.0,0.08708463]
[1733518189177,0.10376951,101440.0,101410.0,0.08708463]
[1733518189380,0.10276951,101440.0,101410.0,0.23708463]
[1733518189682,0.10176951,101440.0,101410.0,0.23708463]
[1733518190202,0.10176951,101440.0,101410.0,0.26698693]
[1733518190853,0.10176951,101440.0,101410.0,0.21698693]
[1733518191052,0.10276951,101440.0,101410.0,0.26698693]
[1733518191258,0.10276951,101440.0,101420.0,0.00049362]
[1733518191460,0.03757347,101450.0,101420.0,0.00049362]
[1733518191703,0.001,101440.0,101420.0,0.00049362]
[1733518192635,0.10002951,101450.0,101420.0,0.00049362]
[1733518193287,0.0017404,101440.0,101420.0,0.00049362]
[1733518194984,0.00297256,101440.0,101410.0,0.30816351]
[1733518195235,0.0017404,101440.0,101420.0,0.00049346]
[1733518195682,0.0017404,101440.0,101430.0,0.00913387]
[1733518196366,0.0017404,101440.0,101420.0,0.00049346]
[1733518196586,0.0017404,101440.0,101430.0,0.00913387]
[1733518197053,0.0047404,101440.0,101420.0,0.00049346]
[1733518197257,0.0047404,101440.0,101430.0,0.00913387]
[1733518197469,0.0027404,101440.0,101430.0,0.00913387]
[1733518197679,0.0027404,101440.0,101420.0,0.00049346]
[1733518197897,0.0027404,101440.0,101430.0,0.00913387]
[1733518198356,0.0027404,101440.0,101420.0,0.00049346]
[1733518198602,0.0027404,101440.0,101430.0,0.00913387]
[1733518198809,0.0037404,101440.0,101420.0,0.00049346]
[1733518199030,0.0037404,101440.0,101430.0,0.00913387]
[1733518199464,0.0037404,101440.0,101420.0,0.00049346]
[1733518199675,0.0037404,101440.0,101430.0,0.00913387]
[1733518199904,0.1285,101460.0,101450.0,0.53442742]
[1733518200113,0.22852951,101460.0,101450.0,0.73787016]
[1733518200360,0.25152951,101460.0,101450.0,0.00913386]
[1733518200613,0.30152951,101460.0,101450.0,0.00913386]
[1733518200861,0.1012,101450.0,101410.0,0.03551978]
[1733518201064,0.2255682,101440.0,101410.0,0.03453383]
[1733518201296,0.2255682,101440.0,101420.0,0.00690605]
[1733518201528,0.2255682,101440.0,101410.0,0.03551973]
[1733518201738,0.2255682,101440.0,101410.0,0.03453383]
[1733518201956,0.2255682,101440.0,101420.0,0.00917097]
[1733518202300,0.2255682,101440.0,101420.0,0.01017097]
[1733518202674,0.2255682,101440.0,101420.0,0.00917097]
[1733518203322,0.2255682,101440.0,101420.0,0.01217097]
[1733518204449,0.2255682,101440.0,101430.0,0.0008698]
[1733518204660,0.22482951,101440.0,101430.0,0.0008698]
[1733518204875,0.22482951,101440.0,101430.0,0.01000367]
[1733518206146,0.22582951,101440.0,101430.0,0.01000367]
[1733518206706,0.24474804,101440.0,101410.0,0.02079425]
[1733518206910,0.24574804,101440.0,101430.0,0.00761155]
[1733518207119,0.24574804,101440.0,101420.0,0.00764866]
[1733518207332,0.24574804,101440.0,101430.0,0.00761155]
[1733518207531,0.24474804,101440.0,101430.0,0.00761155]
[1733518207682,0.24474804,101440.0,101410.0,0.00074016]
[1733518207881,0.24574804,101440.0,101430.0,0.00761155]
[1733518208139,0.24574804,101440.0,101420.0,0.00764866]
[1733518208291,0.24574804,101440.0,101430.0,0.00761155]
[1733518208676,0.24474804,101440.0,101410.0,0.00074016]
[1733518208863,0.24574804,101440.0,101430.0,0.00761155]
[1733518209096,0.24574804,101440.0,101420.0,0.00764866]
[1733518209313,0.24574804,101440.0,101430.0,0.00761155]
[1733518209746,0.24674804,101440.0,101400.0,0.15372727]
[1733518210018,0.24474804,101440.0,101410.0,0.00074016]
[1733518210243,0.24474804,101440.0,101410.0,0.00842593]
[1733518210464,0.24474804,101440.0,101420.0,0.001]
[1733518210676,0.24474804,101440.0,101410.0,0.00842593]
[1733518210878,0.24574804,101440.0,101430.0,0.00761155]
[1733518211088,0.24574804,101440.0,101420.0,0.00764866]
[1733518211348,0.24982951,101440.0,101430.0,0.00761155]
[1733518211801,0.01891853,101410.0,101390.0,0.03335141]
[1733518212043,0.11894804,101410.0,101400.0,0.001]
[1733518212475,0.0813,101400.0,101360.0,0.0446491]
[1733518212697,0.0813,101400.0,101370.0,5.15002951]
[1733518212925,0.11894804,101410.0,101380.0,0.137]
[1733518212926,0.0832,101410.0,101380.0,0.137]
[1733518213145,0.0832,101410.0,101380.0,0.23702951]
[1733518213358,0.025,101440.0,101390.0,5.05]
[1733518213359,0.023,101440.0,101390.0,5.05]
[1733518213573,0.003,101410.0,101400.0,0.15]
[1733518213795,0.003,101410.0,101400.0,0.2287]
[1733518214221,0.003,101410.0,101400.0,0.23637634]
[1733518214449,0.003,101410.0,101400.0,0.28001692]
[1733518214901,0.003,101410.0,101400.0,5.33001692]
[1733518214902,0.004,101410.0,101400.0,5.33001692]
[1733518215174,0.001,101410.0,101400.0,5.57874643]
[1733518215646,0.001,101410.0,101400.0,5.47874643]
[1733518215862,0.001,101410.0,101400.0,3.80774643]
[1733518216086,0.00297191,101450.0,101400.0,3.56387883]
[1733518216316,0.18032951,101440.0,101410.0,4.59]
[1733518216544,0.22982951,101440.0,101410.0,0.24981534]
[1733518216776,0.22982951,101440.0,101420.0,0.00637667]
[1733518219097,0.15052951,101440.0,101420.0,0.00637667]
[1733518219320,0.08433238,101430.0,101420.0,0.00637667]
[1733518219556,0.18436189,101430.0,101420.0,0.00637667]
[1733518219797,0.18436189,101430.0,101400.0,0.0008698]
[1733518220010,0.18436189,101430.0,101420.0,0.00633957]
[1733518220234,0.18436189,101430.0,101400.0,0.0008698]
[1733518220457,0.18436189,101430.0,101420.0,0.00633957]
[1733518220685,0.0761,101420.0,101410.0,0.00638408]
[1733518220926,0.0761,101420.0,101410.0,0.00074053]
[1733518221150,0.17612951,101420.0,101400.0,0.0008698]
[1733518222121,0.17712951,101420.0,101400.0,0.0008698]
[1733518222587,0.17612951,101420.0,101400.0,0.0008698]
[1733518222829,0.17612951,101420.0,101400.0,0.0018698]
[1733518223066,0.17612951,101420.0,101400.0,0.0008698]
[1733518223287,0.17612951,101420.0,101400.0,0.0018698]
[1733518223984,0.17612951,101420.0,101410.0,0.00637473]
[1733518224919,0.22412951,101420.0,101380.0,0.05]
[1733518225142,0.22412951,101420.0,101410.0,0.00531228]
[1733518225404,0.22412951,101420.0,101380.0,0.1938465]
[1733518225628,0.22512951,101420.0,101410.0,0.00552774]
[1733518225858,0.1251,101420.0,101410.0,0.00552774]
[1733518226083,0.1261,101420.0,101390.0,0.10074042]
[1733518226315,0.001,101420.0,101410.0,0.00551849]
[1733518226577,0.001,101420.0,101410.0,5.05551849]
[1733518226803,0.001,101420.0,101410.0,5.05549998]
[1733518227032,0.001,101420.0,101410.0,0.48849998]
[1733518227283,0.002,101420.0,101410.0,0.45234998]
[1733518227505,0.001,101420.0,101410.0,0.45234998]
[1733518227978,0.002,101420.0,101410.0,0.45234998]
[1733518228196,0.0037406,101420.0,101410.0,0.45234998]
[1733518228460,0.0027406,101420.0,101410.0,0.45234998]
[1733518229829,0.02423238,101460.0,101430.0,0.15]
[1733518230056,0.10002951,101450.0,101430.0,0.015]
[1733518230279,0.00123232,101440.0,101410.0,0.19885]
[1733518230550,0.07621548,101490.0,101430.0,0.15]
[1733518230751,0.10126155,101480.0,101440.0,0.0007395]
[1733518230968,0.10126155,101480.0,101450.0,0.15]
[1733518231180,0.003,101460.0,101450.0,0.15]
[1733518231400,0.003,101460.0,101450.0,0.16573942]
[1733518231624,0.10126155,101480.0,101450.0,0.16573942]
[1733518232104,0.10126155,101480.0,101450.0,0.01573942]
[1733518232331,0.10126155,101480.0,101440.0,0.23103926]
[1733518232551,0.006,101450.0,101440.0,5.38106877]
[1733518232780,0.001,101460.0,101440.0,5.43032951]
[1733518233019,0.001,101460.0,101450.0,5.20073899]
[1733518233266,0.001,101460.0,101450.0,5.39984485]
[1733518233484,0.001,101460.0,101450.0,5.44984485]
[1733518233702,0.001,101460.0,101450.0,5.44933485]
[1733518233921,0.1298,101490.0,101460.0,0.15]
[1733518234180,0.22982951,101490.0,101480.0,0.15]
[1733518234605,0.18002951,101490.0,101480.0,0.15]
[1733518234854,0.1307,101520.0,101480.0,5.19949]
[1733518235068,0.1307,101520.0,101500.0,0.15]
[1733518235069,0.10126108,101510.0,101500.0,0.15]
[1733518235491,0.10126105,101510.0,101500.0,0.15]
[1733518236351,0.10726105,101510.0,101500.0,0.001]
[1733518237081,0.23026105,101510.0,101460.0,0.06940706]
[1733518237289,0.0788,101480.0,101440.0,0.07873915]
[1733518237508,0.0788,101480.0,101440.0,0.00073915]
[1733518237509,0.10126142,101470.0,101440.0,0.00073915]
[1733518237719,0.10002951,101470.0,101440.0,0.00367755]
[1733518238396,0.10002951,101470.0,101440.0,0.00567755]
[1733518238616,0.10002951,101470.0,101440.0,0.00367755]
[1733518238836,0.10002951,101470.0,101440.0,0.15367755]
[1733518239062,0.10002951,101470.0,101460.0,0.15]
[1733518240165,0.08003191,101480.0,101450.0,0.00073923]
[1733518240398,0.0788,101480.0,101470.0,0.15]
[1733518240826,0.0788,101480.0,101470.0,0.16112428]
[1733518241043,0.17882951,101480.0,101470.0,0.16112428]
[1733518241883,0.18382951,101480.0,101470.0,0.01112428]
[1733518242118,0.19282951,101480.0,101470.0,0.01112428]
[1733518242323,0.19406137,101480.0,101450.0,0.15073913]
[1733518242546,0.19406137,101480.0,101470.0,0.01112428]
[1733518242751,0.19282951,101480.0,101460.0,0.01116197]
[1733518242959,0.19282951,101480.0,101470.0,0.01112428]
[1733518243817,0.18782951,101480.0,101470.0,0.01112428]
[1733518244232,0.18882951,101480.0,101470.0,0.01112428]
[1733518244461,0.01,101480.0,101470.0,5.06061428]
[1733518244666,0.00297131,101490.0,101470.0,3.29112428]
[1733518244884,0.10002951,101490.0,101480.0,0.15]
[1733518245093,0.10052239,101490.0,101480.0,0.15]
[1733518245316,0.10052239,101490.0,101480.0,0.16109608]
[1733518245999,0.10052239,101490.0,101480.0,0.01109608]
[1733518246231,0.10952239,101490.0,101480.0,0.01109608]
[1733518246449,0.10902951,101490.0,101460.0,0.01619011]
[1733518246698,0.10052239,101480.0,101460.0,0.01619011]
[1733518247822,0.0803,101470.0,101460.0,0.01619011]
[1733518248030,0.18032951,101470.0,101460.0,0.01619011]
[1733518248905,0.18332951,101470.0,101460.0,0.01619011]
[1733518249109,0.18632951,101470.0,101460.0,0.01619011]
[1733518250920,0.023,101500.0,101480.0,0.30857049]
[1733518251155,0.10052239,101490.0,101480.0,0.50442754]
[1733518252442,0.10852239,101490.0,101480.0,0.50559977]
[1733518253777,0.11352239,101490.0,101480.0,0.04702928]
[1733518254047,0.11352239,101490.0,101480.0,0.00117223]
[1733518255773,0.11352239,101490.0,101480.0,0.00979074]
[1733518255984,0.11352239,101490.0,101480.0,0.00117223]
[1733518256207,0.11352239,101490.0,101480.0,0.00979074]
[1733518259821,0.11352239,101490.0,101480.0,0.04878757]
[1733518260038,0.11352239,101490.0,101480.0,0.0296695]
[1733518261143,0.26482951,101490.0,101480.0,0.00979074]
[1733518261608,0.26482951,101490.0,101480.0,0.001]
[1733518262264,0.081,101470.0,101460.0,0.0008694]
[1733518262519,0.18102951,101470.0,101460.0,0.0008694]
[1733518262747,0.18152239,101470.0,101460.0,0.00812028]
[1733518262999,0.20452239,101470.0,101460.0,0.0014848]
[1733518263223,0.20402951,101470.0,101460.0,0.0014848]
[1733518263913,0.20902951,101470.0,101460.0,0.0014848]
[1733518264767,0.21502951,101470.0,101460.0,0.0014848]
[1733518265915,0.11102951,101470.0,101460.0,0.0014848]
[1733518267905,0.011,101470.0,101460.0,0.0014848]
[1733518268832,0.1481,101490.0,101480.0,0.52890712]
[1733518269036,0.24812951,101490.0,101480.0,0.73179783]
[1733518269264,0.24812951,101490.0,101480.0,0.73241179]
[1733518269487,0.24812951,101490.0,101480.0,0.67952108]
[1733518269882,0.25712951,101490.0,101480.0,0.67952108]
[1733518270337,0.10902951,101490.0,101480.0,0.00061396]
[1733518270555,0.009,101490.0,101480.0,0.00061396]
[1733518270780,0.009,101490.0,101480.0,0.00656398]
[1733518271222,0.009,101490.0,101480.0,0.00854929]
[1733518271667,0.0017388,101500.0,101480.0,0.00754929]
[1733518271888,0.10176831,101500.0,101480.0,0.00754929]
[1733518272304,0.002,101490.0,101480.0,0.00754929]
[1733518272785,0.004,101490.0,101480.0,3.86054929]
[1733518272997,0.004,101490.0,101480.0,3.3849858]
[1733518273213,0.0037388,101500.0,101490.0,0.15]
[1733518273861,0.0037388,101500.0,101490.0,0.15060648]
[1733518274308,0.0017388,101500.0,101490.0,0.00060648]
[1733518274518,0.0784,101520.0,101490.0,0.00060648]
[1733518274730,0.10002951,101510.0,101490.0,0.00060648]
[1733518275133,0.002,101500.0,101490.0,0.00060648]
[1733518275362,0.10002951,101510.0,101500.0,0.15]
[1733518275597,0.0790382,101530.0,101500.0,0.24981534]
[1733518275849,0.10302951,101520.0,101500.0,0.15]
[1733518276080,0.10502951,101520.0,101500.0,0.15]
[1733518276317,0.005,101520.0,101500.0,0.1978]
[1733518276558,0.003,101520.0,101510.0,0.00158557]
[1733518276785,0.003,101520.0,101510.0,5.20107557]
[1733518277014,0.003,101520.0,101510.0,5.29990579]
[1733518277260,0.003,101520.0,101510.0,1.77741579]
[1733518277479,0.0017382,101530.0,101520.0,0.15]
[1733518277712,0.10376771,101530.0,101520.0,0.15]
[1733518278204,0.10176771,101530.0,101520.0,0.15]
[1733518278429,0.10176771,101530.0,101520.0,0.16506005]
[1733518278662,0.10176771,101530.0,101520.0,0.00044997]
[1733518278888,0.0017382,101530.0,101510.0,5.13097499]
[1733518279143,0.0037382,101530.0,101520.0,5.04949]
[1733518279369,0.0037382,101530.0,101520.0,5.14930534]
[1733518280073,0.0057382,101530.0,101520.0,5.15008271]
[1733518280515,0.0017382,101530.0,101520.0,5.30008271]
[1733518280738,0.0017382,101530.0,101520.0,5.30108271]
[1733518281643,0.0017382,101530.0,101520.0,5.30208271]
[1733518281857,0.0017382,101530.0,101520.0,2.78077737]
[1733518283663,0.04490783,101570.0,101530.0,0.15]
[1733518283892,0.10002951,101560.0,101530.0,5.2004748]
[1733518284100,0.10002951,101560.0,101540.0,0.00078208]
[1733518285234,0.10702951,101560.0,101540.0,0.00206924]
[1733518285686,0.10702951,101560.0,101550.0,0.00616896]
[1733518286110,0.10702951,101560.0,101540.0,0.001]
[1733518286545,0.11102951,101560.0,101540.0,0.001]
[1733518287434,0.10402951,101560.0,101530.0,0.2319]
[1733518287656,0.013,101560.0,101550.0,0.15206925]
[1733518287880,0.0788,101580.0,101570.0,0.53246266]
[1733518288111,0.17882951,101580.0,101570.0,0.53246266]
[1733518288542,0.0017396,101590.0,101580.0,0.15]
[1733518288788,0.0017378,101560.0,101540.0,0.05626901]
[1733518289001,0.0017378,101560.0,101540.0,0.15716901]
[1733518289209,0.0017378,101560.0,101540.0,0.15616901]
[1733518291169,0.0017378,101560.0,101540.0,0.16016901]
[1733518291413,0.0017378,101560.0,101540.0,0.16716901]
[1733518291619,0.0017378,101560.0,101540.0,0.20856766]
[1733518292311,0.0017378,101560.0,101550.0,0.00098468]
[1733518292522,0.0017378,101560.0,101550.0,0.551]
[1733518292953,0.1271,101580.0,101560.0,0.15]
[1733518293215,0.22712951,101580.0,101560.0,0.15]
[1733518293432,0.22712951,101580.0,101560.0,0.165]
[1733518293949,0.22712951,101580.0,101560.0,0.015]
[1733518295028,0.22912951,101580.0,101560.0,0.015]
[1733518296312,0.23012951,101580.0,101560.0,0.015]
[1733518296733,0.10002951,101570.0,101540.0,0.19756766]
[1733518297384,0.0778,101560.0,101540.0,0.00616901]
[1733518297591,0.10002951,101550.0,101540.0,0.00616901]
[1733518297816,0.10002951,101550.0,101530.0,0.03425577]
[1733518298040,0.12302951,101550.0,101540.0,0.00407154]
[1733518298321,0.17302951,101550.0,101540.0,0.01007154]
[1733518298535,0.17302951,101550.0,101540.0,0.00107154]
[1733518298732,0.17502951,101550.0,101540.0,0.00107154]
[1733518298973,0.17602951,101550.0,101510.0,0.07708492]
[1733518299176,0.17602951,101550.0,101540.0,0.00107154]
[1733518299389,0.17502951,101550.0,101510.0,0.23998015]
[1733518299640,0.17902951,101550.0,101510.0,0.27454097]
[1733518300487,0.18502951,101550.0,101510.0,0.27454097]
[1733518300709,0.0762,101540.0,101520.0,0.00622841]
[1733518300935,0.17622951,101540.0,101520.0,0.00622841]
[1733518302023,0.17622951,101540.0,101520.0,0.00922841]
[1733518302449,0.17622951,101540.0,101520.0,0.16022841]
[1733518302693,0.17622951,101540.0,101520.0,0.1810837]
[1733518303574,0.17622951,101540.0,101520.0,0.0310837]
[1733518307395,0.17622951,101540.0,101520.0,0.04647929]
[1733518307584,0.17622951,101540.0,101520.0,0.0310837]
[1733518311261,0.12302951,101530.0,101520.0,0.01022841]
[1733518311473,0.30092951,101530.0,101520.0,0.01022841]
[1733518311658,0.30092951,101530.0,101520.0,0.004]
[1733518312128,0.30092951,101530.0,101520.0,0.003]
[1733518312375,0.25092951,101530.0,101520.0,0.004]
[1733518312584,0.29752951,101530.0,101520.0,0.004]
[1733518313020,0.29752951,101530.0,101520.0,0.0048684]
[1733518313470,0.29752951,101530.0,101520.0,0.0018684]
[1733518313725,0.30652951,101530.0,101520.0,0.0018684]
[1733518313938,0.31452951,101530.0,101520.0,0.0028684]
[1733518315758,0.26452951,101530.0,101520.0,0.0028684]
[1733518315997,0.1499,101510.0,101500.0,0.0008689]
[1733518316215,0.21782951,101510.0,101500.0,0.0008689]
[1733518317323,0.22682951,101510.0,101500.0,0.0018689]
[1733518318008,0.34749022,101510.0,101500.0,0.0028689]
[1733518318684,0.2198,101490.0,101480.0,0.0008691]
[1733518318933,0.26982951,101490.0,101480.0,0.0008691]
[1733518319806,0.27882951,101490.0,101480.0,0.0008691]
[1733518320224,0.28382951,101490.0,101480.0,0.0008691]
[1733518320666,0.28382951,101490.0,101480.0,0.01758374]
[1733518320899,0.28382951,101490.0,101480.0,0.02379318]
[1733518321584,0.28382951,101490.0,101480.0,0.01627415]
[1733518322034,0.32896682,101490.0,101480.0,0.01627415]
[1733518322771,0.28382951,101490.0,101480.0,0.01627415]
[1733518323478,0.33382951,101490.0,101480.0,0.02379318]
[1733518323712,0.26672951,101490.0,101480.0,0.02379318]
[1733518323969,0.21672951,101490.0,101480.0,0.02379318]
[1733518324811,0.26672951,101490.0,101480.0,0.02379318]
[1733518326632,0.30066154,101490.0,101480.0,0.02379318]
[1733518327679,0.30066154,101490.0,101480.0,0.00838813]
[1733518328311,0.46470513,101490.0,101480.0,0.00838813]
[1733518328749,0.46470513,101490.0,101480.0,0.0008691]
[1733518329166,0.51117564,101490.0,101480.0,0.0008691]
[1733518329596,0.101,101470.0,101460.0,0.0008694]
[1733518329827,0.4177731,101470.0,101460.0,0.0008694]
[1733518330568,0.25022951,101470.0,101460.0,0.0008694]
[1733518331013,0.30100682,101470.0,101460.0,0.0008694]
[1733518331679,0.47755041,101470.0,101460.0,0.0008694]
[1733518332760,0.62755041,101470.0,101460.0,0.0008694]
[1733518333454,0.47755041,101470.0,101460.0,0.0008694]
[1733518334148,0.51123199,101470.0,101460.0,0.0008694]
[1733518336145,0.66123199,101470.0,101460.0,0.0008694]
[1733518336359,0.1315,101440.0,101430.0,0.0008698]
[1733518336572,0.25452951,101440.0,101430.0,0.0008698]
[1733518337195,0.25158682,101440.0,101430.0,0.0008698]
[1733518337416,0.20452951,101440.0,101430.0,0.0008698]
[1733518337640,0.21752951,101440.0,101430.0,0.0008698]
[1733518337849,0.13602951,101440.0,101430.0,0.0008698]
[1733518338109,0.18602951,101440.0,101430.0,0.0008698]
[1733518338315,0.18102951,101440.0,101430.0,0.0008698]
[1733518338786,0.13102951,101440.0,101430.0,0.0008698]
[1733518338995,0.12302951,101440.0,101430.0,0.0063397]
[1733518339234,0.13202951,101440.0,101430.0,0.0008698]
[1733518339442,0.13202951,101440.0,101430.0,0.0063397]
[1733518339660,0.28785051,101440.0,101430.0,0.0008698]
[1733518340568,0.17845651,101440.0,101430.0,0.0008698]
[1733518341224,0.36806383,101440.0,101430.0,0.0008698]